[Event "Titled Tuesday Blitz July 11 Late 2023"]
[White "Antipov, Mikhail Al."]
[Black "Nepomniachtchi, Ian"]
[WhiteFideId "4107012"]
[BlackFideId "4168119"]
[WhiteElo "2891"]
[BlackElo "3116"]
[Result "1-0"]
[Round "4"]
[TimeControl "180+2"]
[Date "2023.07.11"]
[WhiteClock "0:00:06"]
[BlackClock "0:00:30"]
[Board "3"]

1. e4 {[%clk 0:03:00]}  g6 {[%clk 0:03:00]} 2. d4 {[%clk 0:03:00]}  Bg7 {[%clk 0:03:01]} 3. Nf3 {[%clk 0:03:01]}  d6 {[%clk 0:03:02]} 4. Be3 {[%clk 0:03:01]}  a6 {[%clk 0:03:02]} 5. c4 {[%clk 0:03:01]}  Nc6 {[%clk 0:03:02]} 6. h3 {[%clk 0:03:00]}  e5 {[%clk 0:03:01]} 7. d5 {[%clk 0:03:00]}  Nce7 {[%clk 0:03:01]} 8. Nc3 {[%clk 0:02:53]}  f5 {[%clk 0:03:01]} 9. Ng5 {[%clk 0:02:45]}  Nf6 {[%clk 0:03:01]} 10. f3 {[%clk 0:02:38]}  O-O {[%clk 0:02:59]} 11. Be2 {[%clk 0:02:31]}  Nh5 {[%clk 0:02:56]} 12. Qd2 {[%clk 0:02:18]}  Nf4 {[%clk 0:02:42]} 13. Rg1 {[%clk 0:02:13]}  h6 {[%clk 0:02:33]} 14. Ne6 {[%clk 0:02:12]}  Bxe6 {[%clk 0:02:30]} 15. dxe6 {[%clk 0:02:13]}  Nxe6 {[%clk 0:02:30]} 16. Bxh6 {[%clk 0:02:01]}  Bxh6 {[%clk 0:02:22]} 17. Qxh6 {[%clk 0:02:02]}  f4 {[%clk 0:02:23]} 18. g3 {[%clk 0:01:40]}  Kf7 {[%clk 0:02:22]} 19. Qh7+ {[%clk 0:01:36]}  Ng7 {[%clk 0:02:22]} 20. Qh4 {[%clk 0:01:35]}  Rh8 {[%clk 0:02:14]} 21. Qg4 {[%clk 0:01:34]}  Nh5 {[%clk 0:02:15]} 22. c5 {[%clk 0:01:32]}  Qc8 {[%clk 0:01:43]} 23. Bc4+ {[%clk 0:01:29]}  Kf6 {[%clk 0:01:43]} 24. gxf4 {[%clk 0:01:23]}  Qxg4 {[%clk 0:01:36]} 25. fxe5+ {[%clk 0:01:24]}  dxe5 {[%clk 0:01:35]} 26. hxg4 {[%clk 0:01:23]}  Nf4 {[%clk 0:01:35]} 27. g5+ {[%clk 0:01:23]}  Kg7 {[%clk 0:01:35]} 28. O-O-O {[%clk 0:01:24]}  Rad8 {[%clk 0:01:35]} 29. Nd5 {[%clk 0:01:05]}  Nc6 {[%clk 0:01:30]} 30. Nxc7 {[%clk 0:00:48]}  Nd4 {[%clk 0:01:30]} 31. Nd5 {[%clk 0:00:49]}  Nde2+ {[%clk 0:01:14]} 32. Kc2 {[%clk 0:00:42]}  Nxg1 {[%clk 0:01:11]} 33. Rxg1 {[%clk 0:00:42]}  Rc8 {[%clk 0:01:09]} 34. b4 {[%clk 0:00:37]}  a5 {[%clk 0:01:09]} 35. a3 {[%clk 0:00:24]}  axb4 {[%clk 0:01:09]} 36. axb4 {[%clk 0:00:25]}  Ne6 {[%clk 0:01:06]} 37. Ra1 {[%clk 0:00:16]}  Ra8 {[%clk 0:01:02]} 38. Rxa8 {[%clk 0:00:08]}  Rxa8 {[%clk 0:01:03]} 39. Kb2 {[%clk 0:00:07]}  Nd4 {[%clk 0:01:00]} 40. f4 {[%clk 0:00:07]}  Re8 {[%clk 0:00:53]} 41. Kc3 {[%clk 0:00:03]}  Ne6 {[%clk 0:00:49]} 42. Nf6 {[%clk 0:00:02]}  Re7 {[%clk 0:00:48]} 43. Bxe6 {[%clk 0:00:03]}  Rxe6 {[%clk 0:00:48]} 44. f5 {[%clk 0:00:04]}  Ra6 {[%clk 0:00:43]} 45. b5 {[%clk 0:00:03]}  Ra4 {[%clk 0:00:42]} 46. c6 {[%clk 0:00:03]}  bxc6 {[%clk 0:00:42]} 47. b6 {[%clk 0:00:02]}  Ra5 {[%clk 0:00:40]} 48. Kc4 {[%clk 0:00:01]}  Rb5 {[%clk 0:00:40]} 49. Nd7 {[%clk 0:00:01]}  Kf7 {[%clk 0:00:38]} 50. b7 {[%clk 0:00:01]}  Rxb7 {[%clk 0:00:37]} 51. Nxe5+ {[%clk 0:00:01]}  Kg7 {[%clk 0:00:37]} 52. Nxg6 {[%clk 0:00:02]}  Rb1 {[%clk 0:00:37]} 53. e5 {[%clk 0:00:03]}  Rf1 {[%clk 0:00:36]} 54. Ne7 {[%clk 0:00:03]}  Rc1+ {[%clk 0:00:36]} 55. Kd4 {[%clk 0:00:03]}  Kf7 {[%clk 0:00:36]} 56. f6 {[%clk 0:00:03]}  Ke6 {[%clk 0:00:36]} 57. g6 {[%clk 0:00:04]}  Rd1+ {[%clk 0:00:36]} 58. Kc5 {[%clk 0:00:04]}  Rg1 {[%clk 0:00:33]} 59. g7 {[%clk 0:00:04]}  Kxe5 {[%clk 0:00:34]} 60. f7 {[%clk 0:00:04]}  Rxg7 {[%clk 0:00:33]} 61. f8=Q {[%clk 0:00:04]}  Rg5 {[%clk 0:00:34]} 62. Nxc6+ {[%clk 0:00:04]}  Ke4+ {[%clk 0:00:34]} 63. Kb6 {[%clk 0:00:05]}  Rd5 {[%clk 0:00:34]} 64. Qb4+ {[%clk 0:00:05]}  Kf3 {[%clk 0:00:33]} 65. Qe1 {[%clk 0:00:06]}  Rg5 {[%clk 0:00:33]} 66. Nd4+ {[%clk 0:00:06]}  Kf4 {[%clk 0:00:30]} 67. Ne6+ {[%clk 0:00:06]} 1-0


[Site "https://www.chess.com"]

[Event "Titled Tuesday Blitz July 11 Late 2023"]
[White "Hong, Andrew"]
[Black "Dardha, Daniel"]
[WhiteFideId "2099438"]
[BlackFideId "240990"]
[WhiteElo "3086"]
[BlackElo "2870"]
[Result "1/2-1/2"]
[Round "4"]
[TimeControl "180+2"]
[Date "2023.07.11"]
[WhiteClock "0:00:12"]
[BlackClock "0:00:11"]
[Board "5"]

1. d4 {[%clk 0:03:00]}  Nf6 {[%clk 0:02:59]} 2. c4 {[%clk 0:03:01]}  e6 {[%clk 0:02:59]} 3. Nf3 {[%clk 0:03:00]}  d5 {[%clk 0:02:58]} 4. g3 {[%clk 0:03:00]}  Bb4+ {[%clk 0:02:57]} 5. Nbd2 {[%clk 0:02:59]}  dxc4 {[%clk 0:02:44]} 6. Bg2 {[%clk 0:02:58]}  b5 {[%clk 0:02:43]} 7. Ne5 {[%clk 0:02:55]}  Nd5 {[%clk 0:02:39]} 8. Qc2 {[%clk 0:02:55]}  O-O {[%clk 0:02:36]} 9. O-O {[%clk 0:02:55]}  Bb7 {[%clk 0:02:34]} 10. b3 {[%clk 0:02:55]}  Bc3 {[%clk 0:02:31]} 11. Rb1 {[%clk 0:02:55]}  Bxd4 {[%clk 0:02:23]} 12. bxc4 {[%clk 0:02:55]}  Bxe5 {[%clk 0:02:22]} 13. cxd5 {[%clk 0:02:56]}  Bxd5 {[%clk 0:02:21]} 14. Rxb5 {[%clk 0:02:56]}  a6 {[%clk 0:02:11]} 15. Rb1 {[%clk 0:02:17]}  Bxg2 {[%clk 0:02:03]} 16. Kxg2 {[%clk 0:02:18]}  Nd7 {[%clk 0:02:02]} 17. Nf3 {[%clk 0:02:14]}  Bd6 {[%clk 0:02:02]} 18. Ng5 {[%clk 0:02:01]}  Nf6 {[%clk 0:02:02]} 19. Bb2 {[%clk 0:01:58]}  e5 {[%clk 0:02:02]} 20. f4 {[%clk 0:01:53]}  Re8 {[%clk 0:01:54]} 21. Rbd1 {[%clk 0:01:36]}  Qe7 {[%clk 0:01:34]} 22. Rxd6 {[%clk 0:00:38]}  cxd6 {[%clk 0:01:07]} 23. fxe5 {[%clk 0:00:37]}  Rac8 {[%clk 0:01:04]} 24. Qb1 {[%clk 0:00:30]}  Qb7+ {[%clk 0:00:58]} 25. Kg1 {[%clk 0:00:21]}  Qb6+ {[%clk 0:00:47]} 26. Kh1 {[%clk 0:00:21]}  Qb7+ {[%clk 0:00:35]} 27. Kg1 {[%clk 0:00:20]}  h6 {[%clk 0:00:35]} 28. Nxf7 {[%clk 0:00:16]}  Qxf7 {[%clk 0:00:19]} 29. exf6 {[%clk 0:00:16]}  Rxe2 {[%clk 0:00:19]} 30. fxg7 {[%clk 0:00:05]}  Qe6 {[%clk 0:00:11]} 31. Bd4 {[%clk 0:00:03]}  Qxa2 {[%clk 0:00:06]} 32. Rf8+ {[%clk 0:00:03]}  Rxf8 {[%clk 0:00:05]} 33. gxf8=Q+ {[%clk 0:00:04]}  Kxf8 {[%clk 0:00:06]} 34. Qf5+ {[%clk 0:00:03]}  Qf7 {[%clk 0:00:05]} 35. Qc8+ {[%clk 0:00:02]}  Re8 {[%clk 0:00:06]} 36. Qxa6 {[%clk 0:00:03]}  Re1+ {[%clk 0:00:05]} 37. Kg2 {[%clk 0:00:03]}  Qd5+ {[%clk 0:00:05]} 38. Kf2 {[%clk 0:00:02]}  Re7 {[%clk 0:00:03]} 39. Qd3 {[%clk 0:00:02]}  Qf7+ {[%clk 0:00:03]} 40. Kg2 {[%clk 0:00:02]}  Qd5+ {[%clk 0:00:03]} 41. Kg1 {[%clk 0:00:03]}  Qe6 {[%clk 0:00:01]} 42. Qf3+ {[%clk 0:00:02]}  Ke8 {[%clk 0:00:01]} 43. Qa8+ {[%clk 0:00:03]}  Kf7 {[%clk 0:00:02]} 44. Qf3+ {[%clk 0:00:03]}  Kg6 {[%clk 0:00:02]} 45. h4 {[%clk 0:00:02]}  Qe1+ {[%clk 0:00:02]} 46. Kg2 {[%clk 0:00:01]}  Qe2+ {[%clk 0:00:03]} 47. Qxe2 {[%clk 0:00:02]}  Rxe2+ {[%clk 0:00:04]} 48. Kf3 {[%clk 0:00:03]}  Rd2 {[%clk 0:00:04]} 49. Be3 {[%clk 0:00:03]}  Rd3 {[%clk 0:00:05]} 50. g4 {[%clk 0:00:03]}  d5 {[%clk 0:00:04]} 51. h5+ {[%clk 0:00:03]}  Kg7 {[%clk 0:00:03]} 52. Kf4 {[%clk 0:00:03]}  Rd1 {[%clk 0:00:02]} 53. Ke5 {[%clk 0:00:03]}  Re1 {[%clk 0:00:02]} 54. Kd4 {[%clk 0:00:02]}  Rxe3 {[%clk 0:00:02]} 55. Kxe3 {[%clk 0:00:02]}  Kf6 {[%clk 0:00:03]} 56. Kf4 {[%clk 0:00:01]}  Ke6 {[%clk 0:00:01]} 57. g5 {[%clk 0:00:01]}  hxg5+ {[%clk 0:00:01]} 58. Kxg5 {[%clk 0:00:02]}  d4 {[%clk 0:00:02]} 59. Kf4 {[%clk 0:00:03]}  d3 {[%clk 0:00:02]} 60. Ke3 {[%clk 0:00:03]}  Kf5 {[%clk 0:00:03]} 61. Kxd3 {[%clk 0:00:03]}  Kg5 {[%clk 0:00:03]} 62. Ke3 {[%clk 0:00:03]}  Kh6 {[%clk 0:00:04]} 63. Kf4 {[%clk 0:00:03]}  Kh7 {[%clk 0:00:04]} 64. Kg5 {[%clk 0:00:03]}  Kh8 {[%clk 0:00:05]} 65. h6 {[%clk 0:00:04]}  Kg8 {[%clk 0:00:05]} 66. Kf6 {[%clk 0:00:05]}  Kh8 {[%clk 0:00:06]} 67. Kf5 {[%clk 0:00:06]}  Kh7 {[%clk 0:00:07]} 68. Kg5 {[%clk 0:00:07]}  Kh8 {[%clk 0:00:07]} 69. Kh5 {[%clk 0:00:08]}  Kh7 {[%clk 0:00:08]} 70. Kg4 {[%clk 0:00:09]}  Kh8 {[%clk 0:00:08]} 71. Kg5 {[%clk 0:00:09]}  Kh7 {[%clk 0:00:09]} 72. Kh5 {[%clk 0:00:10]}  Kh8 {[%clk 0:00:10]} 73. Kg6 {[%clk 0:00:11]}  Kg8 {[%clk 0:00:10]} 74. h7+ {[%clk 0:00:12]}  Kh8 {[%clk 0:00:11]} 75. Kh6 {[%clk 0:00:12]} 1/2-1/2


[Site "https://www.chess.com"]

[Event "Titled Tuesday Blitz July 11 Late 2023"]
[White "Moroni, Luca Jr"]
[Black "Fedoseev, Vladimir"]
[WhiteFideId "865834"]
[BlackFideId "24130737"]
[WhiteElo "2846"]
[BlackElo "3076"]
[Result "0-1"]
[Round "4"]
[TimeControl "180+2"]
[Date "2023.07.11"]
[WhiteClock "0:00:06"]
[BlackClock "0:00:29"]
[Board "6"]

1. c4 {[%clk 0:03:00]}  g6 {[%clk 0:02:59]} 2. g3 {[%clk 0:03:00]}  e5 {[%clk 0:02:57]} 3. Bg2 {[%clk 0:03:01]}  Nc6 {[%clk 0:02:56]} 4. Nc3 {[%clk 0:03:01]}  d6 {[%clk 0:02:56]} 5. e3 {[%clk 0:03:02]}  Be6 {[%clk 0:02:55]} 6. b3 {[%clk 0:02:59]}  Bg7 {[%clk 0:02:53]} 7. Nge2 {[%clk 0:02:58]}  Qd7 {[%clk 0:02:53]} 8. d4 {[%clk 0:02:58]}  Bh3 {[%clk 0:02:51]} 9. Bxh3 {[%clk 0:02:51]}  Qxh3 {[%clk 0:02:51]} 10. d5 {[%clk 0:02:52]}  Nce7 {[%clk 0:02:48]} 11. Ng1 {[%clk 0:02:49]}  Qd7 {[%clk 0:02:36]} 12. Nge2 {[%clk 0:02:48]}  f5 {[%clk 0:02:30]} 13. e4 {[%clk 0:02:45]}  Nf6 {[%clk 0:02:30]} 14. Bg5 {[%clk 0:02:42]}  O-O {[%clk 0:02:27]} 15. Bxf6 {[%clk 0:02:40]}  Rxf6 {[%clk 0:02:27]} 16. Qd3 {[%clk 0:02:36]}  Bh6 {[%clk 0:02:24]} 17. f3 {[%clk 0:02:30]}  Raf8 {[%clk 0:02:22]} 18. O-O {[%clk 0:02:30]}  c6 {[%clk 0:02:18]} 19. dxc6 {[%clk 0:02:29]}  bxc6 {[%clk 0:02:17]} 20. Rad1 {[%clk 0:02:28]}  Rd8 {[%clk 0:01:54]} 21. Kg2 {[%clk 0:02:27]}  Kh8 {[%clk 0:01:51]} 22. f4 {[%clk 0:02:12]}  exf4 {[%clk 0:01:49]} 23. Nxf4 {[%clk 0:02:13]}  Bxf4 {[%clk 0:01:35]} 24. Rxf4 {[%clk 0:02:12]}  Re6 {[%clk 0:01:36]} 25. c5 {[%clk 0:02:00]}  d5 {[%clk 0:01:28]} 26. exd5 {[%clk 0:01:59]}  cxd5 {[%clk 0:01:23]} 27. Rd4 {[%clk 0:01:59]}  Re5 {[%clk 0:01:21]} 28. b4 {[%clk 0:01:55]}  Qe6 {[%clk 0:01:14]} 29. b5 {[%clk 0:01:44]}  Re3 {[%clk 0:01:13]} 30. Qd2 {[%clk 0:01:44]}  g5 {[%clk 0:01:02]} 31. Rd3 {[%clk 0:01:35]}  f4 {[%clk 0:01:02]} 32. c6 {[%clk 0:01:26]}  Nf5 {[%clk 0:00:50]} 33. Rxd5 {[%clk 0:01:06]}  Rxd5 {[%clk 0:00:47]} 34. Qxd5 {[%clk 0:01:07]}  Re2+ {[%clk 0:00:47]} 35. Kg1 {[%clk 0:00:28]}  Re1+ {[%clk 0:00:37]} 36. Kf2 {[%clk 0:00:28]}  fxg3+ {[%clk 0:00:37]} 37. Kf3 {[%clk 0:00:08]}  Qe3+ {[%clk 0:00:31]} 38. Kg4 {[%clk 0:00:07]}  Qf4+ {[%clk 0:00:31]} 39. Kh3 {[%clk 0:00:08]}  g4+ {[%clk 0:00:29]} 40. Kg2 {[%clk 0:00:06]}  Ne3# {[%clk 0:00:29]} 0-1


[Site "https://www.chess.com"]

[Event "Titled Tuesday Blitz July 11 Late 2023"]
[White "Bortnyk, Mykola"]
[Black "Svane, Frederik"]
[WhiteFideId "14120836"]
[BlackFideId "12923044"]
[WhiteElo "3005"]
[BlackElo "2797"]
[Result "0-1"]
[Round "4"]
[TimeControl "180+2"]
[Date "2023.07.11"]
[WhiteClock "0:00:05"]
[BlackClock "0:00:11"]
[Board "11"]

1. e4 {[%clk 0:03:00]}  e6 {[%clk 0:02:59]} 2. Qe2 {[%clk 0:02:59]}  c5 {[%clk 0:02:57]} 3. b3 {[%clk 0:02:57]}  Nc6 {[%clk 0:02:57]} 4. Bb2 {[%clk 0:02:57]}  d6 {[%clk 0:02:56]} 5. f4 {[%clk 0:02:48]}  Nf6 {[%clk 0:02:56]} 6. Nf3 {[%clk 0:02:47]}  Be7 {[%clk 0:02:56]} 7. g3 {[%clk 0:02:45]}  b6 {[%clk 0:02:50]} 8. e5 {[%clk 0:02:37]}  dxe5 {[%clk 0:02:49]} 9. Nxe5 {[%clk 0:02:36]}  Nd4 {[%clk 0:02:00]} 10. Bxd4 {[%clk 0:02:25]}  Qxd4 {[%clk 0:02:00]} 11. Nc3 {[%clk 0:02:25]}  Bb7 {[%clk 0:01:57]} 12. Bg2 {[%clk 0:02:21]}  Bxg2 {[%clk 0:01:55]} 13. Qxg2 {[%clk 0:02:22]}  O-O {[%clk 0:01:54]} 14. Nc6 {[%clk 0:02:07]}  Qd7 {[%clk 0:01:53]} 15. Nxe7+ {[%clk 0:02:07]}  Qxe7 {[%clk 0:01:53]} 16. O-O {[%clk 0:02:08]}  Rfd8 {[%clk 0:01:53]} 17. d3 {[%clk 0:02:08]}  Qd7 {[%clk 0:01:49]} 18. Kh1 {[%clk 0:01:50]}  Rac8 {[%clk 0:01:45]} 19. Ne4 {[%clk 0:01:46]}  Nxe4 {[%clk 0:01:37]} 20. Qxe4 {[%clk 0:01:47]}  g6 {[%clk 0:01:32]} 21. a4 {[%clk 0:01:46]}  h5 {[%clk 0:01:31]} 22. Rae1 {[%clk 0:01:45]}  a6 {[%clk 0:01:28]} 23. Rg1 {[%clk 0:01:29]}  b5 {[%clk 0:01:26]} 24. axb5 {[%clk 0:01:30]}  axb5 {[%clk 0:01:27]} 25. g4 {[%clk 0:01:30]}  hxg4 {[%clk 0:01:27]} 26. Rxg4 {[%clk 0:01:31]}  c4 {[%clk 0:01:08]} 27. Rxg6+ {[%clk 0:01:21]}  fxg6 {[%clk 0:01:08]} 28. Qxg6+ {[%clk 0:01:22]}  Qg7 {[%clk 0:00:49]} 29. Qxe6+ {[%clk 0:01:21]}  Kh8 {[%clk 0:00:46]} 30. Re5 {[%clk 0:00:58]}  Qb7+ {[%clk 0:00:38]} 31. Kg1 {[%clk 0:00:42]}  Rg8+ {[%clk 0:00:37]} 32. Rg5 {[%clk 0:00:43]}  Rcf8 {[%clk 0:00:23]} 33. Qe5+ {[%clk 0:00:38]}  Rg7 {[%clk 0:00:22]} 34. Kf2 {[%clk 0:00:34]}  Qb6+ {[%clk 0:00:22]} 35. Ke2 {[%clk 0:00:31]}  Qf6 {[%clk 0:00:21]} 36. Rh5+ {[%clk 0:00:23]}  Rh7 {[%clk 0:00:20]} 37. Qxb5 {[%clk 0:00:19]}  cxd3+ {[%clk 0:00:18]} 38. cxd3 {[%clk 0:00:20]}  Qxf4 {[%clk 0:00:15]} 39. Rxh7+ {[%clk 0:00:17]}  Kxh7 {[%clk 0:00:16]} 40. Qh5+ {[%clk 0:00:17]}  Kg7 {[%clk 0:00:16]} 41. d4 {[%clk 0:00:07]}  Qe4+ {[%clk 0:00:16]} 42. Kd2 {[%clk 0:00:08]}  Qxd4+ {[%clk 0:00:15]} 43. Ke1 {[%clk 0:00:08]}  Qe3+ {[%clk 0:00:11]} 44. Kd1 {[%clk 0:00:05]}  Rd8+ {[%clk 0:00:11]} 0-1


[Site "https://www.chess.com"]

[Event "Titled Tuesday Blitz July 11 Late 2023"]
[White "Tristan, Leonardo"]
[Black "He, Anthony"]
[WhiteFideId "113816"]
[BlackFideId "2088215"]
[WhiteElo "2795"]
[BlackElo "2994"]
[Result "0-1"]
[Round "4"]
[TimeControl "180+2"]
[Date "2023.07.11"]
[WhiteClock "0:00:02"]
[BlackClock "0:02:00"]
[Board "12"]

1. d4 {[%clk 0:03:00]}  Nf6 {[%clk 0:03:00]} 2. Nf3 {[%clk 0:03:01]}  g6 {[%clk 0:03:00]} 3. Bf4 {[%clk 0:03:01]}  Bg7 {[%clk 0:03:00]} 4. e3 {[%clk 0:03:02]}  O-O {[%clk 0:03:00]} 5. Be2 {[%clk 0:03:02]}  d6 {[%clk 0:02:59]} 6. O-O {[%clk 0:03:02]}  Nc6 {[%clk 0:02:57]} 7. c3 {[%clk 0:03:02]}  Re8 {[%clk 0:02:57]} 8. h3 {[%clk 0:02:58]}  Bf5 {[%clk 0:02:56]} 9. Qb3 {[%clk 0:02:51]}  Qc8 {[%clk 0:02:56]} 10. Ng5 {[%clk 0:02:15]}  e6 {[%clk 0:02:50]} 11. Nd2 {[%clk 0:02:09]}  h6 {[%clk 0:02:48]} 12. Nxf7 {[%clk 0:01:51]}  Kxf7 {[%clk 0:02:46]} 13. g4 {[%clk 0:01:52]}  g5 {[%clk 0:02:38]} 14. Bxg5 {[%clk 0:01:07]}  hxg5 {[%clk 0:02:35]} 15. gxf5 {[%clk 0:01:08]}  d5 {[%clk 0:02:35]} 16. f4 {[%clk 0:01:01]}  gxf4 {[%clk 0:02:32]} 17. Rxf4 {[%clk 0:01:01]}  Bh6 {[%clk 0:02:28]} 18. fxe6+ {[%clk 0:00:58]}  Rxe6 {[%clk 0:02:29]} 19. Rxf6+ {[%clk 0:00:45]}  Rxf6 {[%clk 0:02:29]} 20. Qxd5+ {[%clk 0:00:44]}  Kg7 {[%clk 0:02:27]} 21. Ne4 {[%clk 0:00:34]}  Rg6+ {[%clk 0:02:26]} 22. Bg4 {[%clk 0:00:21]}  Qd8 {[%clk 0:02:23]} 23. Qb5 {[%clk 0:00:13]}  Qe7 {[%clk 0:02:20]} 24. Ng3 {[%clk 0:00:07]}  Qxe3+ {[%clk 0:02:19]} 25. Kg2 {[%clk 0:00:07]}  Qd2+ {[%clk 0:02:19]} 26. Kh1 {[%clk 0:00:07]}  Re8 {[%clk 0:02:11]} 27. Qxb7 {[%clk 0:00:05]}  Bf4 {[%clk 0:02:06]} 28. Nf5+ {[%clk 0:00:05]}  Kh7 {[%clk 0:02:04]} 29. Kg1 {[%clk 0:00:01]}  Bh2+ {[%clk 0:01:59]} 30. Kf1 {[%clk 0:00:02]}  Rxg4 {[%clk 0:01:59]} 31. hxg4 {[%clk 0:00:02]}  Qe2# {[%clk 0:02:00]} 0-1


[Site "https://www.chess.com"]

[Event "Titled Tuesday Blitz July 11 Late 2023"]
[White "Licznerski, Lukasz"]
[Black "Makarian, Rudik"]
[WhiteFideId "1179250"]
[BlackFideId "44105681"]
[WhiteElo "2792"]
[BlackElo "2969"]
[Result "1-0"]
[Round "4"]
[TimeControl "180+2"]
[Date "2023.07.11"]
[WhiteClock "0:00:02"]
[BlackClock "0:00:01"]
[Board "14"]

1. e4 {[%clk 0:02:14]}  c5 {[%clk 0:02:59]} 2. Nf3 {[%clk 0:02:14]}  Nc6 {[%clk 0:03:00]} 3. d4 {[%clk 0:02:15]}  cxd4 {[%clk 0:03:01]} 4. Nxd4 {[%clk 0:02:15]}  e6 {[%clk 0:03:01]} 5. Nc3 {[%clk 0:02:15]}  a6 {[%clk 0:03:02]} 6. Nxc6 {[%clk 0:02:15]}  bxc6 {[%clk 0:03:03]} 7. Bd3 {[%clk 0:02:15]}  d5 {[%clk 0:03:04]} 8. O-O {[%clk 0:02:15]}  Nf6 {[%clk 0:03:04]} 9. b3 {[%clk 0:02:14]}  Be7 {[%clk 0:03:04]} 10. Bb2 {[%clk 0:02:14]}  O-O {[%clk 0:03:05]} 11. Qe2 {[%clk 0:02:14]}  a5 {[%clk 0:03:03]} 12. e5 {[%clk 0:02:12]}  Nd7 {[%clk 0:03:03]} 13. Na4 {[%clk 0:02:13]}  g6 {[%clk 0:02:51]} 14. c4 {[%clk 0:02:12]}  Nb6 {[%clk 0:02:41]} 15. Nxb6 {[%clk 0:02:10]}  Qxb6 {[%clk 0:02:42]} 16. Rab1 {[%clk 0:01:56]}  a4 {[%clk 0:02:35]} 17. Bc1 {[%clk 0:01:49]}  axb3 {[%clk 0:02:33]} 18. axb3 {[%clk 0:01:50]}  Bb7 {[%clk 0:02:29]} 19. Be3 {[%clk 0:01:44]}  d4 {[%clk 0:02:14]} 20. Bh6 {[%clk 0:01:33]}  Rfe8 {[%clk 0:02:14]} 21. b4 {[%clk 0:01:26]}  c5 {[%clk 0:01:43]} 22. b5 {[%clk 0:01:22]}  Ra3 {[%clk 0:01:39]} 23. Bc1 {[%clk 0:01:12]}  Ra4 {[%clk 0:01:35]} 24. Qg4 {[%clk 0:01:07]}  Bf8 {[%clk 0:01:29]} 25. h4 {[%clk 0:01:06]}  Bg7 {[%clk 0:01:23]} 26. Re1 {[%clk 0:01:02]}  Qa5 {[%clk 0:01:21]} 27. Bg5 {[%clk 0:00:53]}  Ra3 {[%clk 0:01:13]} 28. Be4 {[%clk 0:00:53]}  Bxe4 {[%clk 0:01:08]} 29. Qxe4 {[%clk 0:00:54]}  Qb6 {[%clk 0:01:00]} 30. h5 {[%clk 0:00:47]}  Ra4 {[%clk 0:00:46]} 31. Rec1 {[%clk 0:00:45]}  h6 {[%clk 0:00:40]} 32. Bf6 {[%clk 0:00:43]}  g5 {[%clk 0:00:30]} 33. f4 {[%clk 0:00:37]}  Bxf6 {[%clk 0:00:12]} 34. exf6 {[%clk 0:00:38]}  Qd6 {[%clk 0:00:09]} 35. fxg5 {[%clk 0:00:33]}  hxg5 {[%clk 0:00:10]} 36. b6 {[%clk 0:00:29]}  Rb8 {[%clk 0:00:10]} 37. b7 {[%clk 0:00:23]}  Ra2 {[%clk 0:00:06]} 38. Rb3 {[%clk 0:00:16]}  Qf4 {[%clk 0:00:02]} 39. Qxf4 {[%clk 0:00:16]}  gxf4 {[%clk 0:00:02]} 40. Rf1 {[%clk 0:00:11]}  Rc2 {[%clk 0:00:02]} 41. Rxf4 {[%clk 0:00:10]}  Rxc4 {[%clk 0:00:03]} 42. Rg3+ {[%clk 0:00:10]}  Kh7 {[%clk 0:00:02]} 43. Rg7+ {[%clk 0:00:10]}  Kh6 {[%clk 0:00:03]} 44. Rxf7 {[%clk 0:00:10]}  Rb4 {[%clk 0:00:03]} 45. Rc7 {[%clk 0:00:05]}  d3 {[%clk 0:00:03]} 46. Rxb4 {[%clk 0:00:02]}  cxb4 {[%clk 0:00:04]} 47. Rd7 {[%clk 0:00:02]}  b3 {[%clk 0:00:04]} 48. Rxd3 {[%clk 0:00:02]}  b2 {[%clk 0:00:04]} 49. Rb3 {[%clk 0:00:02]}  Kg5 {[%clk 0:00:01]} 50. f7 {[%clk 0:00:02]} 1-0


[Site "https://www.chess.com"]

[Event "Titled Tuesday Blitz July 11 Late 2023"]
[White "Shimanov, Aleksandr"]
[Black "Di Berardino, Diego Rafael"]
[WhiteFideId "4198603"]
[BlackFideId "2105446"]
[WhiteElo "2932"]
[BlackElo "2635"]
[Result "1-0"]
[Round "4"]
[TimeControl "180+2"]
[Date "2023.07.11"]
[WhiteClock "0:01:30"]
[BlackClock "0:00:06"]
[Board "18"]

1. d4 {[%clk 0:03:00]}  Nf6 {[%clk 0:02:57]} 2. Bg5 {[%clk 0:03:00]}  e6 {[%clk 0:02:52]} 3. Nd2 {[%clk 0:02:58]}  d5 {[%clk 0:02:49]} 4. e3 {[%clk 0:02:57]}  c5 {[%clk 0:02:39]} 5. c3 {[%clk 0:02:57]}  Be7 {[%clk 0:02:31]} 6. Bd3 {[%clk 0:02:56]}  b6 {[%clk 0:02:31]} 7. Qe2 {[%clk 0:02:53]}  Bb7 {[%clk 0:02:25]} 8. Bxf6 {[%clk 0:02:49]}  Bxf6 {[%clk 0:02:25]} 9. f4 {[%clk 0:02:49]}  Qc8 {[%clk 0:02:21]} 10. Bb5+ {[%clk 0:02:47]}  Bc6 {[%clk 0:02:19]} 11. Bd3 {[%clk 0:02:46]}  Bb7 {[%clk 0:02:19]} 12. Bb5+ {[%clk 0:02:45]}  Bc6 {[%clk 0:02:19]} 13. a4 {[%clk 0:02:45]}  Bxb5 {[%clk 0:02:06]} 14. axb5 {[%clk 0:02:46]}  O-O {[%clk 0:01:55]} 15. Ngf3 {[%clk 0:02:46]}  a6 {[%clk 0:01:54]} 16. O-O {[%clk 0:02:46]}  Qb7 {[%clk 0:01:54]} 17. g4 {[%clk 0:02:38]}  axb5 {[%clk 0:01:23]} 18. Rxa8 {[%clk 0:02:39]}  Qxa8 {[%clk 0:01:23]} 19. Qxb5 {[%clk 0:02:40]}  Qc6 {[%clk 0:01:21]} 20. Qxc6 {[%clk 0:02:39]}  Nxc6 {[%clk 0:01:21]} 21. Ra1 {[%clk 0:02:40]}  cxd4 {[%clk 0:01:15]} 22. exd4 {[%clk 0:02:38]}  Na5 {[%clk 0:01:12]} 23. b4 {[%clk 0:02:30]}  Nc6 {[%clk 0:00:56]} 24. Ra6 {[%clk 0:02:29]}  Rb8 {[%clk 0:00:57]} 25. Kf2 {[%clk 0:02:26]}  g6 {[%clk 0:00:57]} 26. Ke3 {[%clk 0:02:26]}  Ne7 {[%clk 0:00:52]} 27. Ne5 {[%clk 0:02:22]}  Bxe5 {[%clk 0:00:41]} 28. fxe5 {[%clk 0:02:23]}  Kg7 {[%clk 0:00:38]} 29. Ra7 {[%clk 0:02:19]}  Nc8 {[%clk 0:00:33]} 30. Rc7 {[%clk 0:02:15]}  h6 {[%clk 0:00:31]} 31. Nb3 {[%clk 0:02:04]}  Ra8 {[%clk 0:00:31]} 32. Kd3 {[%clk 0:01:55]}  Na7 {[%clk 0:00:24]} 33. Rb7 {[%clk 0:01:54]}  Nc8 {[%clk 0:00:18]} 34. h4 {[%clk 0:01:52]}  g5 {[%clk 0:00:18]} 35. h5 {[%clk 0:01:52]}  Kf8 {[%clk 0:00:17]} 36. Nd2 {[%clk 0:01:40]}  Ne7 {[%clk 0:00:16]} 37. Rxb6 {[%clk 0:01:38]}  Ra1 {[%clk 0:00:15]} 38. Rb8+ {[%clk 0:01:33]}  Kg7 {[%clk 0:00:15]} 39. Rb7 {[%clk 0:01:33]}  Kf8 {[%clk 0:00:14]} 40. b5 {[%clk 0:01:32]}  Rg1 {[%clk 0:00:13]} 41. b6 {[%clk 0:01:32]}  Ke8 {[%clk 0:00:11]} 42. Rxe7+ {[%clk 0:01:30]}  Kxe7 {[%clk 0:00:06]} 43. b7 {[%clk 0:01:30]} 1-0


[Site "https://www.chess.com"]